fUST/lending_fUST_20250626
["ID","MTS","AMOUNT","RATE_DAILY","PERIOD"]
[367627145,1750881047486,-460.0,0.00017534,2]
[367627147,1750881047495,-690.47,0.00017534,2]
[367627149,1750881047504,-460.0,0.00017534,2]
[367627151,1750881047513,-712.72,0.00017534,2]
[367627153,1750881047522,-460.0,0.00017534,2]
[367627155,1750881047531,-1179.7,0.00017534,2]
[367627157,1750881047541,-460.0,0.00017534,2]
[367627159,1750881047551,-1199.51,0.00017534,2]
[367627161,1750881047560,-2329.28,0.00017534,2]
[367627163,1750881047569,-300.6512875,0.00017534,2]
[367627166,1750881047584,-2479.6687125,0.00017534,2]
[367627168,1750881047593,-1923.99,0.00017534,2]
[367627170,1750881047603,-460.0,0.00017534,2]
[367627172,1750881047612,-460.0,0.00017534,2]
[367627174,1750881047622,-460.0,0.00017534,2]
[367627176,1750881047631,-460.0,0.00017534,2]
[367627178,1750881047641,-460.0,0.00017534,2]
[367627180,1750881047650,-548.48,0.00017534,2]
[367627182,1750881047659,-670.7,0.00017534,2]
[367627184,1750881047668,-460.0,0.00017534,2]
[367627186,1750881047678,-397.94,0.00017534,2]
[367627188,1750881047687,-882.97,0.00017534,2]
[367627190,1750881047696,-460.0,0.00017534,2]
[367627192,1750881047705,-460.0,0.00017534,2]
[367627194,1750881047715,-625.31,0.00017534,2]
[367627196,1750881047724,-460.0,0.00017534,2]
[367627198,1750881047733,-1145.64,0.00017534,2]
[367627200,1750881047742,-523.07,0.00017534,2]
[367627201,1750881047751,-460.0,0.00017534,2]
[367627203,1750881047761,-1537.77,0.00017534,2]
[367627205,1750881047770,-686.58,0.00017534,2]
[367627207,1750881047780,-460.0,0.00017534,2]
[367627209,1750881047788,-830.7355351,0.00017534,2]
[367627244,1750881048110,-681.91926495,0.00016338,2]
[367627246,1750881048120,-500.0,0.00016985,2]
[367627248,1750881048130,-500.0,0.00016985,2]
[367627250,1750881048140,-500.0,0.00016985,2]
[367627252,1750881048151,-500.0,0.00016985,2]
[367627254,1750881048161,-278.78693766,0.00016985,2]
[367627256,1750881048170,-500.0,0.00016985,2]
[367627258,1750881048179,-263.7544649,0.00017534,2]
[367627260,1750881048188,-460.0,0.00017534,2]
[367627262,1750881048197,-597.38,0.00017534,2]
[367627264,1750881048206,-351.96,0.00017534,2]
[367627266,1750881048215,-460.0,0.00017534,2]
[367627268,1750881048224,-460.0,0.00017534,2]
[367627270,1750881048235,-460.0,0.00017534,2]
[367627272,1750881048245,-503.77,0.00017534,2]
[367627273,1750881048254,-460.0,0.00017534,2]
[367627275,1750881048264,-1000.0,0.00017538,2]
[367627277,1750881048273,-207.4,0.00017594,2]
[367627279,1750881048283,-500.0,0.00017594,2]
[367627282,1750881048296,-500.0,0.00017594,2]
[367627284,1750881048310,-500.0,0.00017594,2]
[367627286,1750881048323,-500.0,0.00017594,2]
[367627289,1750881048338,-500.0,0.00017594,2]
[367627291,1750881048351,-500.0,0.00017594,2]
[367627293,1750881048361,-500.0,0.00017594,2]
[367627296,1750881048373,-381.33984163,0.00017594,2]
[367629481,1750881194331,3000.0,0.00023,30]
[367629482,1750881233963,132.6319185,0.00015617,2]
[367629483,1750881233984,58.095333,0.00015617,2]
[367629484,1750881241859,3564.68392843,0.0001811,9]
[367629485,1750881257663,151.0,0.0001811,9]
[367629486,1750881301405,197.13608938,0.000161,2]
[367629487,1750881330931,213.2228568,0.00015945,2]
[367629489,1750881637241,190.5734054,0.00015945,2]
[367629490,1750881667009,10000.0,0.00015413,2]
[367629491,1750881668737,5000.0,0.000161,2]
[367629492,1750881736357,930.242401,0.00015413,2]
[367629493,1750881756312,3410.72991442,0.00015413,2]
[367629494,1750881756334,20000.0,0.00015413,2]
[367629495,1750881756355,20000.0,0.00015413,2]
[367629496,1750881756377,1169.12032028,0.00015413,2]
[367629497,1750881848038,-157.87586033,0.00016258,2]
[367629498,1750881848065,-500.0,0.00016335,2]
[367629499,1750881848092,-160.26247724,0.00016337,2]
[367629500,1750881848120,-336.34793949,0.00016437,2]
[367629501,1750881848148,-179.55316422,0.00016437,2]
[367629502,1750881848176,-1200.0,0.00016437,2]
[367629503,1750881848203,-300.0,0.00016437,2]
[367629504,1750881848230,-245.96055872,0.00016438,2]
[367629505,1750881851843,-214.03944128,0.00016438,2]
[367629506,1750881851870,-460.0,0.00016438,2]
[367629507,1750881851896,-460.0,0.00016438,2]
[367629508,1750881851923,-510.0,0.00016438,2]
[367629509,1750881851950,-460.0,0.00016438,2]
[367629510,1750881851977,-460.0,0.00016438,2]
[367629511,1750881852004,-460.0,0.00016438,2]
[367629512,1750881852030,-421.16935955,0.00016438,2]
[367629513,1750881852056,-460.0,0.00016438,2]
[367629514,1750881852083,-460.0,0.00016438,2]
[367629515,1750881852110,-460.0,0.00016438,2]
[367629516,1750881852137,-174.79119917,0.00016438,2]
[367629517,1750881853174,-45.8938822,0.00016438,2]
[367629518,1750881853200,-460.0,0.00016438,2]
[367629519,1750881853225,-460.0,0.00016438,2]
[367629520,1750881853251,-460.0,0.00016438,2]
[367629521,1750881853434,-460.0,0.00016438,2]
[367629522,1750881853462,-460.0,0.00016438,2]
[367629523,1750881853489,-460.0,0.00016438,2]
[367629524,1750881853515,-233.92,0.00016438,2]
[367629525,1750881853542,-460.0,0.00016438,2]
[367629526,1750881853569,-460.0,0.00016438,2]
[367629527,1750881853594,-460.0,0.00016438,2]
[367629528,1750881853619,-460.0,0.00016438,2]
[367629529,1750881853649,-120.1861178,0.00016438,2]
[367629530,1750881853777,-339.8138822,0.00016438,2]
[367629531,1750881853803,-460.0,0.00016438,2]
[367629532,1750881853830,-460.0,0.00016438,2]
[367629533,1750881853857,-460.0,0.00016438,2]
[367629534,1750881853883,-460.0,0.00016438,2]
[367629535,1750881853909,-460.0,0.00016438,2]
[367629536,1750881853936,-460.0,0.00016438,2]
[367629537,1750881853962,-460.0,0.00016438,2]
[367629538,1750881853992,-231.80782862,0.00016438,2]
[367629539,1750881854020,-460.0,0.00016438,2]
[367629540,1750881854048,-460.0,0.00016438,2]
[367629541,1750881854075,-288.37828918,0.00016438,2]
[367629542,1750881854221,-171.62171082,0.00016438,2]
[367629543,1750881854249,-3072.67,0.00016438,2]
[367629544,1750881854276,-533.82,0.00016438,2]
[367629545,1750881854301,-460.0,0.00016438,2]
[367629546,1750881854328,-460.0,0.00016438,2]
[367629547,1750881854353,-301.88828918,0.00016438,2]
[367629548,1750881854674,-158.11171082,0.00016438,2]
[367629549,1750881854701,-460.0,0.00016438,2]
[367629550,1750881854728,-1675.94,0.00016438,2]
[367629551,1750881854754,-460.0,0.00016438,2]
[367629552,1750881854779,-460.0,0.00016438,2]
[367629553,1750881854805,-460.0,0.00016438,2]
[367629554,1750881854832,-1150.41,0.00016438,2]
[367629555,1750881854857,-175.53828918,0.00016438,2]
[367629556,1750881857140,-443.58171082,0.00016438,2]
[367629557,1750881857168,-2604.79,0.00016438,2]
[367629558,1750881857193,-498.77,0.00016438,2]
[367629559,1750881857219,-460.0,0.00016438,2]
[367629560,1750881857245,-460.0,0.00016438,2]
[367629561,1750881857273,-532.85828918,0.00016438,2]
[367629562,1750881867631,454.59141681,0.000161,2]
[367629564,1750881938796,184.22388089,0.00015945,2]
[367629565,1750881975690,729.1258145,0.00015456,2]
[367629566,1750881980429,1554.0,0.00025242,62]
[367629568,1750882012320,501.597252,0.00013699,2]
[367629569,1750882020946,16961.34131552,0.00015456,2]
[367629570,1750882020968,7938.65868448,0.00015456,2]
[367629571,1750882051206,5000.0,0.000161,2]
[367629572,1750882060718,7061.34131552,0.00015522,2]
[367629573,1750882060740,18022.63006598,0.00015522,2]
[367629574,1750882080672,1977.36993402,0.00015506,2]
[367629575,1750882080694,331.63006598,0.00015506,2]
[367629576,1750882089863,503.9227435,0.00015522,2]
[367629578,1750882103063,5000.07,0.00025242,60]
[367629584,1750882142258,156.44776916,6.9e-07,2]
[367629585,1750882142297,156.44776916,6.9e-07,2]
[367629586,1750882142353,156.44776916,6.9e-07,2]
[367629587,1750882142387,156.44776916,6.9e-07,2]
[367629588,1750882142501,156.44776916,6.9e-07,2]
[367629589,1750882142685,156.44776916,6.9e-07,2]
[367629590,1750882142788,156.44776916,6.9e-07,2]
[367629591,1750882142886,156.44776916,6.9e-07,2]
[367629592,1750882144363,10258.28328595,0.00016,30]
[367629593,1750882178403,1038.3010585,0.00015579,2]
[367629594,1750882187967,214.9371811,0.00015579,2]
[367629627,1750882232556,-5000.0,0.00016272,2]
[367629646,1750882232775,-1147.15339237,0.00016338,2]
[367629648,1750882232786,-1200.0,0.00016436,2]
[367629650,1750882232796,-300.0,0.00016436,2]
[367629652,1750882232806,-300.0,0.00016436,2]
[367629654,1750882232816,-356.84556445,0.00016436,2]
[367630169,1750882238510,-843.15443555,0.00016436,2]
[367630171,1750882238520,-209.78,0.00016438,2]
[367630173,1750882238530,-460.0,0.00016438,2]
[367630175,1750882238539,-460.0,0.00016438,2]
[367630177,1750882238549,-460.0,0.00016438,2]
[367630179,1750882238558,-460.0,0.00016438,2]
[367630181,1750882238567,-460.0,0.00016438,2]
[367630183,1750882238576,-460.0,0.00016438,2]
[367630185,1750882238586,-460.0,0.00016438,2]
[367630187,1750882238595,-460.0,0.00016438,2]
[367630189,1750882238604,-460.0,0.00016438,2]
[367630191,1750882238614,-460.0,0.00016438,2]
[367630193,1750882238623,-460.0,0.00016438,2]
[367630195,1750882238632,-460.0,0.00016438,2]
[367630197,1750882238642,-460.0,0.00016438,2]
[367630199,1750882238651,-478.61214098,0.00016438,2]
[367630201,1750882238660,-245.00676627,0.00016438,2]
[367630203,1750882238670,-460.0,0.00016438,2]
[367630205,1750882238679,-460.0,0.00016438,2]
[367630207,1750882238688,-561.13682606,0.00016438,2]
[367630209,1750882238698,-460.0,0.00016438,2]
[367630211,1750882238708,-460.0,0.00016438,2]
[367630213,1750882238717,-460.0,0.00016438,2]
[367630215,1750882238727,-460.0,0.00016438,2]
[367630217,1750882238736,-460.0,0.00016438,2]
[367630219,1750882238746,-460.0,0.00016438,2]
[367630221,1750882238755,-460.0,0.00016438,2]
[367630223,1750882238766,-460.0,0.00016438,2]
[367630225,1750882238777,-460.0,0.00016438,2]
[367630227,1750882238786,-460.0,0.00016438,2]
[367630229,1750882238796,-460.0,0.00016438,2]
[367630231,1750882238805,-460.0,0.00016438,2]
[367630233,1750882238815,-460.0,0.00016438,2]
[367630235,1750882238824,-460.0,0.00016438,2]
[367630237,1750882238833,-460.0,0.00016438,2]
[367630239,1750882238842,-460.0,0.00016438,2]
[367630241,1750882238852,-460.0,0.00016438,2]
[367630243,1750882238863,-460.0,0.00016438,2]
[367630245,1750882238873,-460.0,0.00016438,2]
[367630247,1750882238882,-161.74308903,0.00016438,2]
[367630249,1750882238894,-460.0,0.00016438,2]
[367630251,1750882238903,-460.0,0.00016438,2]
[367630253,1750882238913,-460.0,0.00016438,2]
[367630255,1750882238923,-460.0,0.00016438,2]
[367630258,1750882238933,-460.0,0.00016438,2]
[367630260,1750882238947,-460.0,0.00016438,2]
[367630262,1750882238956,-460.0,0.00016438,2]
[367630263,1750882238965,-460.0,0.00016438,2]
[367630265,1750882238975,-460.0,0.00016438,2]
[367630267,1750882238985,-460.0,0.00016438,2]
[367630269,1750882238996,-460.0,0.00016438,2]
[367630272,1750882239006,-460.0,0.00016438,2]
[367630274,1750882239016,-442.1347341,0.00016438,2]
[367630276,1750882239025,-460.0,0.00016438,2]
[367630277,1750882239034,-460.0,0.00016438,2]
[367630279,1750882239043,-460.0,0.00016438,2]
[367630281,1750882239052,-476.17,0.00016438,2]
[367630283,1750882239061,-460.0,0.00016438,2]
[367630285,1750882239070,-460.0,0.00016438,2]
[367630287,1750882239079,-460.0,0.00016438,2]
[367630289,1750882239088,-460.0,0.00016438,2]
[367630291,1750882239097,-460.0,0.00016438,2]
[367630293,1750882239108,-460.0,0.00016438,2]
[367630295,1750882239117,-460.0,0.00016438,2]
[367630297,1750882239126,-460.0,0.00016438,2]
[367630299,1750882239135,-460.0,0.00016438,2]
[367630301,1750882239145,-460.0,0.00016438,2]
[367630304,1750882239154,-460.0,0.00016438,2]
[367630306,1750882239163,-460.0,0.00016438,2]
[367630307,1750882239172,-460.0,0.00016438,2]
[367630309,1750882239181,-460.0,0.00016438,2]
[367630312,1750882239190,-460.0,0.00016438,2]
[367630314,1750882239200,-460.0,0.00016438,2]
[367630316,1750882239209,-854.92,0.00016438,2]
[367630318,1750882239219,-460.0,0.00016438,2]
[367630319,1750882239228,-460.0,0.00016438,2]
[367630321,1750882239237,-508.61928749,0.00016438,2]
[367630323,1750882239246,-460.0,0.00016438,2]
[367630325,1750882239255,-460.0,0.00016438,2]
[367630327,1750882239264,-460.0,0.00016438,2]
[367630329,1750882239273,-306.44177707,0.00016438,2]
[367630331,1750882239282,-460.0,0.00016438,2]
[367630334,1750882239292,-460.0,0.00016438,2]
[367630336,1750882239301,-460.0,0.00016438,2]
[367630338,1750882239311,-460.0,0.00016438,2]
[367630339,1750882239320,-460.0,0.00016438,2]
[367630343,1750882239339,-460.0,0.00016438,2]
[367630345,1750882239349,-460.0,0.00016438,2]
[367630347,1750882239359,-460.0,0.00016438,2]
[367630349,1750882239368,-460.0,0.00016438,2]
[367630351,1750882239378,-460.0,0.00016438,2]
[367630353,1750882239387,-460.0,0.00016438,2]
[367630355,1750882239397,-460.0,0.00016438,2]
[367630357,1750882239407,-460.0,0.00016438,2]
[367630359,1750882239416,-460.0,0.00016438,2]
[367630361,1750882239426,-460.0,0.00016438,2]
[367630363,1750882239435,-460.0,0.00016438,2]
[367630365,1750882239444,-460.0,0.00016438,2]
[367630367,1750882239454,-460.0,0.00016438,2]
[367630369,1750882239463,-460.0,0.00016438,2]
[367630371,1750882239473,-460.0,0.00016438,2]
[367630373,1750882239482,-460.0,0.00016438,2]
[367630375,1750882239491,-460.0,0.00016438,2]
[367630377,1750882239501,-460.0,0.00016438,2]
[367630379,1750882239511,-460.0,0.00016438,2]
[367630381,1750882239520,-460.0,0.00016438,2]
[367630383,1750882239530,-502.0,0.00016438,2]
[367630385,1750882239540,-460.0,0.00016438,2]
[367630387,1750882239549,-460.0,0.00016438,2]
[367630389,1750882239559,-784.28,0.00016438,2]
[367630391,1750882239568,-460.0,0.00016438,2]
[367630393,1750882239578,-460.0,0.00016438,2]
[367630395,1750882239587,-460.0,0.00016438,2]
[367630397,1750882239596,-460.0,0.00016438,2]
[367630399,1750882239606,-460.0,0.00016438,2]
[367630401,1750882239615,-504.11538217,0.00016438,2]
[367630403,1750882239626,-1342.04,0.00016438,2]
[367630405,1750882239635,-460.0,0.00016438,2]
[367630407,1750882239645,-585.5,0.00016438,2]
[367630409,1750882239654,-279.4952613,0.00016438,2]
[367630411,1750882239665,-460.0,0.00016438,2]
[367630414,1750882239674,-460.0,0.00016438,2]
[367630416,1750882239684,-460.0,0.00016438,2]
[367630418,1750882239694,-460.0,0.00016438,2]
[367630420,1750882239703,-460.0,0.00016438,2]
[367630422,1750882239713,-474.78,0.00016438,2]
[367630424,1750882239722,-220.02244178,0.00016438,2]
[367630426,1750882239733,-460.0,0.00016438,2]
[367630428,1750882239743,-460.0,0.00016438,2]
[367630430,1750882239753,-460.0,0.00016438,2]
[367630432,1750882239762,-1652.25,0.00016438,2]
[367630434,1750882239771,-460.0,0.00016438,2]
[367630436,1750882239781,-460.0,0.00016438,2]
[367630438,1750882239791,-460.0,0.00016438,2]
[367630440,1750882239801,-460.0,0.00016438,2]
[367630442,1750882239810,-460.0,0.00016438,2]
[367630444,1750882239819,-460.0,0.00016438,2]
[367630446,1750882239829,-460.0,0.00016438,2]
[367630448,1750882239838,-460.0,0.00016438,2]
[367630450,1750882239848,-684.68,0.00016438,2]
[367630452,1750882239857,-460.0,0.00016438,2]
[367630454,1750882239867,-460.0,0.00016438,2]
[367630456,1750882239878,-460.0,0.00016438,2]
[367630458,1750882239887,-460.0,0.00016438,2]
[367630460,1750882239897,-460.0,0.00016438,2]
[367630462,1750882239906,-460.0,0.00016438,2]
[367630464,1750882239916,-554.04,0.00016438,2]
[367630465,1750882239925,-460.0,0.00016438,2]
[367630466,1750882239937,-460.0,0.00016438,2]
[367630467,1750882239946,-1916.09,0.00016438,2]
[367630468,1750882239956,-460.0,0.00016438,2]
[367630469,1750882239967,-460.0,0.00016438,2]
[367630472,1750882239976,-552.86,0.00016438,2]
[367630473,1750882239985,-460.0,0.00016438,2]
[367630475,1750882239995,-460.0,0.00016438,2]
[367630478,1750882240004,-460.0,0.00016438,2]
[367630480,1750882240013,-460.0,0.00016438,2]
[367630482,1750882240023,-460.0,0.00016438,2]
[367630484,1750882240032,-572.72,0.00016438,2]
[367630486,1750882240041,-460.0,0.00016438,2]
[367630488,1750882240051,-3498.74,0.00016438,2]
[367630490,1750882240060,-460.0,0.00016438,2]
[367630492,1750882240069,-460.0,0.00016438,2]
[367630494,1750882240078,-1291.19,0.00016438,2]
[367630497,1750882240087,-460.0,0.00016438,2]
[367630499,1750882240097,-460.0,0.00016438,2]
[367630501,1750882240107,-460.0,0.00016438,2]
[367630503,1750882240116,-460.0,0.00016438,2]
[367630505,1750882240125,-460.0,0.00016438,2]
[367630507,1750882240135,-460.0,0.00016438,2]
[367630509,1750882240144,-460.0,0.00016438,2]
[367630511,1750882240153,-2067.75,0.00016438,2]
[367630513,1750882240162,-460.0,0.00016438,2]
[367630515,1750882240172,-460.0,0.00016438,2]
[367630517,1750882240181,-460.0,0.00016438,2]
[367630519,1750882240191,-460.0,0.00016438,2]
[367630521,1750882240200,-811.56,0.00016438,2]
[367630523,1750882240209,-460.0,0.00016438,2]
[367630525,1750882240219,-460.0,0.00016438,2]
[367630527,1750882240229,-460.0,0.00016438,2]
[367630529,1750882240238,-460.0,0.00016438,2]
[367630531,1750882240247,-2990.44,0.00016438,2]
[367630533,1750882240256,-460.0,0.00016438,2]
[367630535,1750882240265,-460.0,0.00016438,2]
[367630537,1750882240275,-460.0,0.00016438,2]
[367630539,1750882240289,-460.0,0.00016438,2]
[367630541,1750882240298,-460.0,0.00016438,2]
[367630543,1750882240307,-460.0,0.00016438,2]
[367630545,1750882240316,-460.0,0.00016438,2]
[367630547,1750882240325,-460.0,0.00016438,2]
[367630549,1750882240335,-460.0,0.00016438,2]
[367630551,1750882240344,-460.0,0.00016438,2]
[367630553,1750882240354,-468.95,0.00016438,2]
[367630555,1750882240364,-460.0,0.00016438,2]
[367630557,1750882240373,-460.0,0.00016438,2]
[367630560,1750882240382,-498.17,0.00016438,2]
[367630562,1750882240395,-460.0,0.00016438,2]
[367630564,1750882240405,-968.9,0.00016438,2]
[367630566,1750882240414,-460.0,0.00016438,2]
[367630568,1750882240424,-641.34,0.00016438,2]
[367630570,1750882240433,-460.0,0.00016438,2]
[367630572,1750882240443,-460.0,0.00016438,2]
[367630574,1750882240452,-460.0,0.00016438,2]
[367630576,1750882240462,-3230.92,0.00016438,2]
[367630578,1750882240471,-460.0,0.00016438,2]
[367630580,1750882240481,-460.0,0.00016438,2]
[367630582,1750882240490,-460.0,0.00016438,2]
[367630584,1750882240499,-460.0,0.00016438,2]
[367630586,1750882240510,-990.9,0.00016438,2]
[367630588,1750882240519,-460.0,0.00016438,2]
[367630590,1750882240528,-522.98,0.00016438,2]
[367630592,1750882240537,-460.0,0.00016438,2]
[367630594,1750882240547,-460.0,0.00016438,2]
[367630597,1750882240557,-460.0,0.00016438,2]
[367630599,1750882240567,-460.0,0.00016438,2]
[367630601,1750882240577,-780.85,0.00016438,2]
[367630603,1750882240586,-460.0,0.00016438,2]
[367630605,1750882240595,-460.0,0.00016438,2]
[367630607,1750882240604,-1462.66,0.00016438,2]
[367630609,1750882240615,-2035.57,0.00016438,2]
[367630611,1750882240624,-460.0,0.00016438,2]
[367630613,1750882240634,-460.0,0.00016438,2]
[367630615,1750882240644,-460.0,0.00016438,2]
[367630617,1750882240653,-460.0,0.00016438,2]
[367630619,1750882240663,-223.99993759,0.00016438,2]
[367630621,1750882240672,-1890.42,0.00016438,2]
[367630623,1750882240681,-460.0,0.00016438,2]
[367630625,1750882240690,-1607.96,0.00016438,2]
[367630627,1750882240700,-425.18074102,0.00016438,2]
[367630629,1750882240710,-634.23,0.00016438,2]
[367630631,1750882240719,-460.0,0.00016438,2]
[367630633,1750882240729,-462.49394205,0.00016438,2]
[367630635,1750882240738,-460.0,0.00016438,2]
[367630637,1750882240748,-460.0,0.00016438,2]
[367630639,1750882240758,-460.0,0.00016438,2]
[367630641,1750882240767,-460.0,0.00016438,2]
[367630643,1750882240777,-1280.77,0.00016438,2]
[367630645,1750882240786,-460.0,0.00016438,2]
[367630647,1750882240795,-659.25,0.00016438,2]
[367630649,1750882240804,-497.88786067,0.00016438,2]
[367630651,1750882240813,-460.0,0.00016438,2]
[367630653,1750882240823,-460.53,0.00016438,2]
[367630655,1750882240834,-460.0,0.00016438,2]
[367630657,1750882240844,-318.66381283,0.00016438,2]
[367630659,1750882240852,-460.0,0.00016438,2]
[367630661,1750882240862,-460.0,0.00016438,2]
[367630663,1750882240871,-460.0,0.00016438,2]
[367630665,1750882240880,-2428.87,0.00016438,2]
[367630667,1750882240890,-460.0,0.00016438,2]
[367630670,1750882240900,-666.0,0.00016438,2]
[367630672,1750882240909,-368.37700743,0.0001651,2]
[367630674,1750882240918,-1418.67583012,0.00016612,2]
[367630676,1750882240928,-159.84,0.00016702,3]
[367630678,1750882240943,-479.54,0.00016702,3]
[367630680,1750882240952,-166.67,0.00016702,3]
[367630682,1750882240961,-500.06,0.00016702,3]
[367630684,1750882240970,-460.0,0.00016712,2]
[367630686,1750882240981,-460.0,0.00016712,2]
[367630688,1750882240990,-460.0,0.00016712,2]
[367630690,1750882240999,-459.91,0.00016712,2]
[367630692,1750882241008,-460.0,0.00016712,2]
[367630694,1750882241018,-460.0,0.00016712,2]
[367630696,1750882241028,-460.0,0.00016712,2]
[367630698,1750882241037,-576.96,0.00016712,2]
[367630700,1750882241047,-460.0,0.00016712,2]
[367630702,1750882241056,-460.0,0.00016712,2]
[367630704,1750882241065,-460.0,0.00016712,2]
[367630706,1750882241074,-460.0,0.00016712,2]
[367630708,1750882241084,-460.0,0.00016712,2]
[367630710,1750882241093,-498.77,0.00016712,2]
[367630712,1750882241102,-460.0,0.00016712,2]
[367630714,1750882241112,-187.0,0.00016712,2]
[367630716,1750882241121,-460.0,0.00016712,2]
[367630718,1750882241130,-460.0,0.00016712,2]
[367630720,1750882241139,-460.0,0.00016712,2]
[367630722,1750882241148,-460.0,0.00016712,2]
[367630724,1750882241157,-556.62,0.00016712,2]
[367630726,1750882241167,-460.0,0.00016712,2]
[367630728,1750882241177,-348.46,0.00016712,2]
[367630730,1750882241187,-460.0,0.00016712,2]
[367630732,1750882241196,-486.41,0.00016712,2]
[367630734,1750882241205,-411.51,0.00016712,2]
[367630736,1750882241213,-460.0,0.00016712,2]
[367630738,1750882241223,-460.0,0.00016712,2]
[367630740,1750882241232,-460.0,0.00016712,2]
[367630742,1750882241241,-460.0,0.00016712,2]
[367630744,1750882241251,-209.88,0.00016712,2]
[367630746,1750882241260,-460.0,0.00016712,2]
[367630769,1750882241442,-460.0,0.00016712,2]
[367630772,1750882241478,-460.0,0.00016712,2]
[367630774,1750882241488,-460.0,0.00016712,2]
[367630776,1750882241497,-460.0,0.00016712,2]
[367630778,1750882241506,-460.0,0.00016712,2]
[367630780,1750882241516,-460.0,0.00016712,2]
[367630782,1750882241526,-460.0,0.00016712,2]
[367630784,1750882241535,-460.0,0.00016712,2]
[367630786,1750882241544,-541.28,0.00016712,2]
[367630789,1750882241554,-460.0,0.00016712,2]
[367630791,1750882241563,-460.0,0.00016712,2]
[367630793,1750882241573,-854.92,0.00016712,2]
[367630795,1750882241582,-460.0,0.00016712,2]
[367630797,1750882241591,-460.0,0.00016712,2]
[367630798,1750882241600,-460.0,0.00016712,2]
[367630801,1750882241611,-460.0,0.00016712,2]
[367630803,1750882241620,-430.0,0.00016712,2]
[367630804,1750882241629,-460.0,0.00016712,2]
[367630807,1750882241639,-460.0,0.00016712,2]
[367630809,1750882241648,-466.09,0.00016712,2]
[367630811,1750882241657,-460.0,0.00016712,2]
[367630813,1750882241666,-460.0,0.00016712,2]
[367630815,1750882241676,-460.0,0.00016712,2]
[367630817,1750882241685,-460.0,0.00016712,2]
[367630819,1750882241694,-460.0,0.00016712,2]
[367630821,1750882241703,-460.0,0.00016712,2]
[367630822,1750882241712,-460.0,0.00016712,2]
[367630824,1750882241721,-460.0,0.00016712,2]
[367630826,1750882241731,-460.0,0.00016712,2]
[367630828,1750882241741,-460.0,0.00016712,2]
[367630830,1750882241750,-460.0,0.00016712,2]
[367630833,1750882241759,-460.0,0.00016712,2]
[367630835,1750882241769,-502.0,0.00016712,2]
[367630837,1750882241778,-460.0,0.00016712,2]
[367630839,1750882241787,-784.28,0.00016712,2]
[367630841,1750882241796,-460.0,0.00016712,2]
[367630843,1750882241805,-460.0,0.00016712,2]
[367630845,1750882241815,-247.06,0.00016712,2]
[367630847,1750882241824,-460.0,0.00016712,2]
[367630849,1750882241833,-1342.04,0.00016712,2]
[367630851,1750882241842,-460.0,0.00016712,2]
[367630853,1750882241852,-460.0,0.00016712,2]